[Event "Live Chess"]
[Site "Chess.com"]
[Date "2023.05.21"]
[Round "-"]
[White "smoggyrabbit"]
[Black "TheSmoulderingMaster"]
[Result "0-1"]
[WhiteElo "1677"]
[BlackElo "1644"]
[TimeControl "300"]
[EndTime "4:47:41 PDT"]
[Termination "TheSmoulderingMaster won on time"]

1. d4 {[%clk 0:04:58.2]} 1... Nf6 {[%clk 0:04:57.8]} 2. Nf3 {[%clk 0:04:56.9]}
2... d6 {[%clk 0:04:57.3]} 3. e3 {[%clk 0:04:45.9]} 3... g6 {[%clk 0:04:55.7]}
4. b3 {[%clk 0:04:44.2]} 4... Bg7 {[%clk 0:04:54.9]} 5. Bb2 {[%clk 0:04:43.2]}
5... O-O {[%clk 0:04:54.1]} 6. Be2 {[%clk 0:04:42.4]} 6... c5 {[%clk 0:04:52.2]}
7. O-O {[%clk 0:04:39.7]} 7... Nc6 {[%clk 0:04:50.6]} 8. c4 {[%clk 0:04:38.1]}
8... Qb6 {[%clk 0:04:46.2]} 9. Nbd2 {[%clk 0:04:30.7]} 9... Bg4 {[%clk
0:04:42.5]} 10. h3 {[%clk 0:04:28.4]} 10... Bxf3 {[%clk 0:04:39.8]} 11. Nxf3
{[%clk 0:04:26.8]} 11... cxd4 {[%clk 0:04:39.7]} 12. exd4 {[%clk 0:04:23.9]}
12... e5 {[%clk 0:04:34.8]} 13. dxe5 {[%clk 0:04:20.6]} 13... dxe5 {[%clk
0:04:33.7]} 14. Bxe5 {[%clk 0:04:10.1]} 14... Rfe8 {[%clk 0:04:31.6]} 15. Bb2
{[%clk 0:03:33]} 15... Rad8 {[%clk 0:04:28.7]} 16. Qc2 {[%clk 0:03:25.5]} 16...
Nb4 {[%clk 0:04:22.1]} 17. Qc3 {[%clk 0:02:41.9]} 17... Rxe2 {[%clk 0:03:05.6]}
18. Rad1 {[%clk 0:02:01.9]} 18... Rde8 {[%clk 0:02:45.1]} 19. a3 {[%clk
0:01:45.3]} 19... Nh5 {[%clk 0:02:30.6]} 20. Nd4 {[%clk 0:01:29]} 20... Rc2
{[%clk 0:02:09.8]} 21. Qxb4 {[%clk 0:01:08.6]} 21... Qxb4 {[%clk 0:02:08]} 22.
axb4 {[%clk 0:01:08.5]} 22... Rxb2 {[%clk 0:02:06.6]} 23. Nb5 {[%clk 0:00:59.8]}
23... Nf4 {[%clk 0:02:02.5]} 24. Rfe1 {[%clk 0:00:45.1]} 24... Rxe1+ {[%clk
0:01:53.8]} 25. Rxe1 {[%clk 0:00:45]} 25... h5 {[%clk 0:01:50.9]} 26. Nd6 {[%clk
0:00:40.3]} 26... Rxb3 {[%clk 0:01:47.6]} 27. Nxb7 {[%clk 0:00:36.1]} 27... Rxb4
{[%clk 0:01:45.8]} 28. Nd6 {[%clk 0:00:30.7]} 28... Nd3 {[%clk 0:01:40.8]} 29.
Rd1 {[%clk 0:00:19.4]} 29... Nb2 {[%clk 0:01:33.8]} 30. Rc1 {[%clk 0:00:18.3]}
30... Bf8 {[%clk 0:01:30.5]} 31. c5 {[%clk 0:00:17.5]} 31... Nd3 {[%clk
0:01:25]} 32. c6 {[%clk 0:00:15.9]} 32... Bxd6 {[%clk 0:01:22.5]} 33. c7 {[%clk
0:00:14.4]} 33... Bxc7 {[%clk 0:01:20.1]} 34. Rxc7 {[%clk 0:00:13.5]} 34... a5
{[%clk 0:01:18.5]} 35. Rd7 {[%clk 0:00:10.7]} 35... Nc5 {[%clk 0:01:13.5]} 36.
Ra7 {[%clk 0:00:09.5]} 36... a4 {[%clk 0:01:12]} 37. Ra5 {[%clk 0:00:07.7]}
37... Rc4 {[%clk 0:01:09.7]} 38. Ra8+ {[%clk 0:00:05.2]} 38... Kg7 {[%clk
0:01:08.2]} 39. Kf1 {[%clk 0:00:03.6]} 39... Kf6 {[%clk 0:01:07]} 40. Ke2 {[%clk
0:00:00.6]} 40... Ke5 {[%clk 0:01:05.8]} 0-1

[Event "Live Chess"]
[Site "Chess.com"]
[Date "2023.05.21"]
[Round "-"]
[White "Reggie016"]
[Black "McSlash1"]
[Result "0-1"]
[WhiteElo "1101"]
[BlackElo "2003"]
[TimeControl "300"]
[EndTime "4:47:49 PDT"]
[Termination "McSlash1 won by resignation"]

1. e4 {[%clk 0:04:59.6]} 1... c5 {[%clk 0:04:59.3]} 2. c3 {[%clk 0:04:58.3]}
2... d5 {[%clk 0:04:58.5]} 3. exd5 {[%clk 0:04:57.2]} 3... Qxd5 {[%clk
0:04:58.4]} 4. d4 {[%clk 0:04:56.3]} 4... cxd4 {[%clk 0:04:58.3]} 5. cxd4 {[%clk
0:04:55.3]} 5... Nf6 {[%clk 0:04:57.5]} 6. Nc3 {[%clk 0:04:53.6]} 6... Qd8
{[%clk 0:04:57.1]} 7. Nf3 {[%clk 0:04:52.6]} 7... Bf5 {[%clk 0:04:56.6]} 8. Bb5+
{[%clk 0:04:43.8]} 8... Nbd7 {[%clk 0:04:54.7]} 9. O-O {[%clk 0:04:40.1]} 9...
e6 {[%clk 0:04:53.7]} 10. Ne5 {[%clk 0:04:36.1]} 10... Be7 {[%clk 0:04:52.6]}
11. Bg5 {[%clk 0:04:32.3]} 11... O-O {[%clk 0:04:51.5]} 12. Qf3 {[%clk
0:04:16.4]} 12... a6 {[%clk 0:04:40.3]} 13. Nxd7 {[%clk 0:03:59.4]} 13... Nxd7
{[%clk 0:04:40.2]} 14. Bxe7 {[%clk 0:03:54.4]} 14... Qxe7 {[%clk 0:04:40.1]} 15.
Bd3 {[%clk 0:03:48.4]} 15... Bg6 {[%clk 0:04:33.7]} 16. Rfe1 {[%clk 0:03:38.6]}
16... b5 {[%clk 0:04:28.4]} 17. Rad1 {[%clk 0:03:30]} 17... b4 {[%clk 0:04:27]}
18. Ne4 {[%clk 0:03:24.4]} 18... Nb6 {[%clk 0:04:23.8]} 19. Nc5 {[%clk
0:03:04.9]} 19... Nd5 {[%clk 0:04:20.4]} 20. Bc4 {[%clk 0:02:55.7]} 20... Rfd8
{[%clk 0:04:16.2]} 21. Bxd5 {[%clk 0:02:22.8]} 21... Rxd5 {[%clk 0:04:16.1]} 22.
Qxd5 {[%clk 0:02:15.4]} 22... Rd8 {[%clk 0:03:51.3]} 23. Qc4 {[%clk 0:02:08.8]}
23... Qg5 {[%clk 0:03:48]} 24. Nxa6 {[%clk 0:01:50.8]} 24... Bh5 {[%clk
0:03:34.5]} 25. Rc1 {[%clk 0:01:40.8]} 25... Bf3 {[%clk 0:03:29.9]} 26. g3
{[%clk 0:01:35.8]} 26... Qg4 {[%clk 0:03:22.1]} 27. d5 {[%clk 0:01:06.7]} 27...
Qh3 {[%clk 0:03:17.1]} 28. Qf1 {[%clk 0:00:56.6]} 28... Qh6 {[%clk 0:03:16.6]}
29. h4 {[%clk 0:00:54.1]} 29... Bxd5 {[%clk 0:03:12.7]} 30. Nxb4 {[%clk
0:00:51.4]} 30... Bf3 {[%clk 0:03:09.5]} 31. Nc6 {[%clk 0:00:47.4]} 31... Rf8
{[%clk 0:03:08]} 32. Ne7+ {[%clk 0:00:46.2]} 32... Kh8 {[%clk 0:03:07.5]} 33.
Rc8 {[%clk 0:00:44.3]} 33... Rxc8 {[%clk 0:03:04.7]} 34. Nxc8 {[%clk 0:00:43.5]}
34... Qd2 {[%clk 0:03:00.8]} 35. Rd1 {[%clk 0:00:41]} 35... Bxd1 {[%clk
0:02:59]} 36. Ne7 {[%clk 0:00:31.8]} 36... h6 {[%clk 0:02:56.7]} 37. a4 {[%clk
0:00:21]} 37... Be2 {[%clk 0:02:54.9]} 38. Qg2 {[%clk 0:00:18.6]} 38... Qd1+
{[%clk 0:02:54.1]} 39. Kh2 {[%clk 0:00:17.8]} 39... Bf3 {[%clk 0:02:52.9]} 40.
Qg1 {[%clk 0:00:14.4]} 40... Qe2 {[%clk 0:02:52.4]} 41. a5 {[%clk 0:00:13.1]}
41... Qxb2 {[%clk 0:02:49.6]} 42. Qd1 {[%clk 0:00:08]} 0-1

[Event "Live Chess"]
[Site "Chess.com"]
[Date "2023.05.21"]
[Round "-"]
[White "Doge_Dandolo"]
[Black "KeithArkell"]
[Result "0-1"]
[WhiteElo "1888"]
[BlackElo "2488"]
[TimeControl "300"]
[EndTime "4:47:49 PDT"]
[Termination "KeithArkell won by resignation"]

1. Nf3 {[%clk 0:04:56.7]} 1... Nf6 {[%clk 0:04:58.4]} 2. c4 {[%clk 0:04:55.2]}
2... c5 {[%clk 0:04:56.9]} 3. b3 {[%clk 0:04:52.2]} 3... Nc6 {[%clk 0:04:55.5]}
4. Bb2 {[%clk 0:04:38.5]} 4... e6 {[%clk 0:04:54.8]} 5. g3 {[%clk 0:04:27.7]}
5... b6 {[%clk 0:04:42.8]} 6. Bg2 {[%clk 0:04:19.8]} 6... Bb7 {[%clk 0:04:41.8]}
7. O-O {[%clk 0:04:18.1]} 7... Be7 {[%clk 0:04:37.5]} 8. d4 {[%clk 0:04:00.2]}
8... Nxd4 {[%clk 0:04:31.8]} 9. Nxd4 {[%clk 0:03:58.1]} 9... Bxg2 {[%clk
0:04:30.7]} 10. Nxe6 {[%clk 0:03:40.5]} 10... dxe6 {[%clk 0:04:29.7]} 11. Kxg2
{[%clk 0:03:37.6]} 11... Qxd1 {[%clk 0:04:27.7]} 12. Rxd1 {[%clk 0:03:36]} 12...
O-O {[%clk 0:04:26.8]} 13. Nc3 {[%clk 0:03:31.4]} 13... Rfd8 {[%clk 0:04:20.7]}
14. e3 {[%clk 0:03:15]} 14... Ne8 {[%clk 0:04:14.4]} 15. Ne4 {[%clk 0:03:12.3]}
15... Nf6 {[%clk 0:04:08.5]} 16. Nxf6+ {[%clk 0:03:09.2]} 16... Bxf6 {[%clk
0:04:07.9]} 17. Bxf6 {[%clk 0:03:08.1]} 17... gxf6 {[%clk 0:04:07.3]} 18. Kf3
{[%clk 0:03:07]} 18... Kf8 {[%clk 0:03:55.3]} 19. Ke4 {[%clk 0:03:04.6]} 19...
Ke7 {[%clk 0:03:53.7]} 20. f4 {[%clk 0:03:00]} 20... f5+ {[%clk 0:03:52.4]} 21.
Kf3 {[%clk 0:02:56.5]} 21... h5 {[%clk 0:03:51.3]} 22. e4 {[%clk 0:02:52.3]}
22... fxe4+ {[%clk 0:03:50.4]} 23. Kxe4 {[%clk 0:02:50.4]} 23... Rxd1 {[%clk
0:03:46]} 24. Rxd1 {[%clk 0:02:49]} 24... Rg8 {[%clk 0:03:45.6]} 25. Rd3 {[%clk
0:02:42.1]} 25... h4 {[%clk 0:03:41.2]} 26. Ke5 {[%clk 0:02:39.5]} 26... hxg3
{[%clk 0:03:37.8]} 27. Rxg3 {[%clk 0:02:37.3]} 27... Rh8 {[%clk 0:03:34.4]} 28.
h3 {[%clk 0:02:32.5]} 28... Rh5+ {[%clk 0:03:32.9]} 29. Ke4 {[%clk 0:02:29.5]}
29... Kf6 {[%clk 0:03:32.3]} 30. Kf3 {[%clk 0:02:25.5]} 30... Rh8 {[%clk
0:03:30.5]} 31. Ke4 {[%clk 0:02:21.4]} 31... Rd8 {[%clk 0:03:24.2]} 32. h4
{[%clk 0:02:18.5]} 32... Rd2 {[%clk 0:03:18.7]} 33. Rh3 {[%clk 0:02:13.8]} 33...
Re2+ {[%clk 0:03:15.5]} 34. Kd3 {[%clk 0:02:09.8]} 34... Rxa2 {[%clk 0:03:13.8]}
35. h5 {[%clk 0:02:08.7]} 35... Kg7 {[%clk 0:03:13.2]} 36. h6+ {[%clk
0:02:07.7]} 36... Kh7 {[%clk 0:03:12.4]} 37. Ke4 {[%clk 0:02:05]} 37... f6
{[%clk 0:03:11.8]} 38. Kd3 {[%clk 0:01:56.8]} 38... Rb2 {[%clk 0:03:07.3]} 39.
Kc3 {[%clk 0:01:55.3]} 39... Rf2 {[%clk 0:03:02.5]} 40. Rh4 {[%clk 0:01:53.1]}
40... Rf3+ {[%clk 0:02:59.6]} 41. Kc2 {[%clk 0:01:50.7]} 41... Rg3 {[%clk
0:02:58.5]} 42. Kb2 {[%clk 0:01:46.8]} 42... Rg6 {[%clk 0:02:57.1]} 43. Kc3
{[%clk 0:01:44.3]} 43... Rxh6 {[%clk 0:02:56.2]} 44. Rg4 {[%clk 0:01:42.9]}
44... Rg6 {[%clk 0:02:54.5]} 45. Rh4+ {[%clk 0:01:42]} 45... Kg7 {[%clk
0:02:53.8]} 46. b4 {[%clk 0:01:40.2]} 46... Rg3+ {[%clk 0:02:52.3]} 47. Kb2
{[%clk 0:01:39.5]} 47... cxb4 {[%clk 0:02:51.6]} 0-1

[Event "Live Chess"]
[Site "Chess.com"]
[Date "2023.05.21"]
[Round "-"]
[White "Brooms1989"]
[Black "ViktorTheCoolBoy"]
[Result "0-1"]
[WhiteElo "1137"]
[BlackElo "2477"]
[TimeControl "300"]
[EndTime "4:47:52 PDT"]
[Termination "ViktorTheCoolBoy won by resignation"]

1. e4 {[%clk 0:04:56]} 1... c5 {[%clk 0:04:59.3]} 2. Nc3 {[%clk 0:04:54.7]} 2...
Nc6 {[%clk 0:04:58.4]} 3. f4 {[%clk 0:04:53.7]} 3... g6 {[%clk 0:04:56.5]} 4.
Nf3 {[%clk 0:04:52.3]} 4... Bg7 {[%clk 0:04:54.1]} 5. Bb5 {[%clk 0:04:50.9]}
5... Nd4 {[%clk 0:04:52.4]} 6. Nxd4 {[%clk 0:04:44.3]} 6... cxd4 {[%clk
0:04:51.1]} 7. Ne2 {[%clk 0:04:42.8]} 7... e6 {[%clk 0:04:45.9]} 8. O-O {[%clk
0:04:38.5]} 8... Qb6 {[%clk 0:04:39.9]} 9. Ba4 {[%clk 0:04:32.7]} 9... d3+
{[%clk 0:04:37.7]} 10. Kh1 {[%clk 0:04:28.2]} 10... dxe2 {[%clk 0:04:34.2]} 11.
Qxe2 {[%clk 0:04:28.1]} 11... Ne7 {[%clk 0:04:31.8]} 12. d3 {[%clk 0:04:22.6]}
12... O-O {[%clk 0:04:27.4]} 13. Bb3 {[%clk 0:04:17.4]} 13... a5 {[%clk
0:04:24.4]} 14. Be3 {[%clk 0:04:15]} 14... Qc7 {[%clk 0:04:23.2]} 15. c3 {[%clk
0:04:11.8]} 15... a4 {[%clk 0:04:20.7]} 16. Bc2 {[%clk 0:04:10.7]} 16... a3
{[%clk 0:04:14]} 17. d4 {[%clk 0:03:56]} 17... axb2 {[%clk 0:04:12.5]} 18. Rab1
{[%clk 0:03:55.7]} 18... Qxc3 {[%clk 0:04:09.5]} 19. Bd2 {[%clk 0:03:54.5]}
19... Qxc2 {[%clk 0:04:07.4]} 0-1

[Event "Live Chess"]
[Site "Chess.com"]
[Date "2023.05.21"]
[Round "-"]
[White "GEMdzq"]
[Black "Berdgross"]
[Result "1-0"]
[WhiteElo "2289"]
[BlackElo "667"]
[TimeControl "300"]
[EndTime "4:47:55 PDT"]
[Termination "GEMdzq won by resignation"]

1. e4 {[%clk 0:04:58.2]} 1... d5 {[%clk 0:04:57.9]} 2. exd5 {[%clk 0:04:56.9]}
2... Qxd5 {[%clk 0:04:56.4]} 3. Nc3 {[%clk 0:04:56.5]} 3... Qd8 {[%clk
0:04:54.8]} 4. d4 {[%clk 0:04:56.2]} 4... Nc6 {[%clk 0:04:53.9]} 5. Nf3 {[%clk
0:04:46.1]} 5... Bg4 {[%clk 0:04:50.8]} 6. Bb5 {[%clk 0:04:35.4]} 6... a6 {[%clk
0:04:48.8]} 7. Ba4 {[%clk 0:04:32.1]} 7... b5 {[%clk 0:04:47.4]} 8. Bb3 {[%clk
0:04:31.4]} 8... b4 {[%clk 0:04:45.8]} 9. Nd5 {[%clk 0:04:06.8]} 9... Nxd4
{[%clk 0:04:41.5]} 10. Qxd4 {[%clk 0:04:04.5]} 10... Bxf3 {[%clk 0:04:36.3]} 11.
gxf3 {[%clk 0:04:04.4]} 11... e6 {[%clk 0:04:31.5]} 12. Ba4+ {[%clk 0:04:03.3]}
12... c6 {[%clk 0:04:22.9]} 13. Bxc6+ {[%clk 0:04:02.3]} 1-0

[Event "Live Chess"]
[Site "Chess.com"]
[Date "2023.05.21"]
[Round "-"]
[White "Ian-Morley"]
[Black "peter-785"]
[Result "1-0"]
[WhiteElo "1056"]
[BlackElo "1171"]
[TimeControl "300"]
[EndTime "4:47:57 PDT"]
[Termination "Ian-Morley won on time"]

1. e4 {[%clk 0:04:59.2]} 1... c5 {[%clk 0:04:56.8]} 2. Nf3 {[%clk 0:04:58]} 2...
d6 {[%clk 0:04:54.6]} 3. Bb5+ {[%clk 0:04:57.4]} 3... Nd7 {[%clk 0:04:52.5]} 4.
Bxd7+ {[%clk 0:04:56.3]} 4... Bxd7 {[%clk 0:04:52]} 5. O-O {[%clk 0:04:55.7]}
5... e6 {[%clk 0:04:49.7]} 6. Re1 {[%clk 0:04:54.4]} 6... Nf6 {[%clk 0:04:49.3]}
7. c3 {[%clk 0:04:53.9]} 7... Be7 {[%clk 0:04:48.6]} 8. d4 {[%clk 0:04:53]} 8...
cxd4 {[%clk 0:04:46.3]} 9. cxd4 {[%clk 0:04:52.5]} 9... O-O {[%clk 0:04:40.2]}
10. Nc3 {[%clk 0:04:51.5]} 10... a6 {[%clk 0:04:38.6]} 11. e5 {[%clk 0:04:50.5]}
11... dxe5 {[%clk 0:04:34.7]} 12. dxe5 {[%clk 0:04:49.6]} 12... Ne8 {[%clk
0:04:25.6]} 13. Re3 {[%clk 0:04:39.1]} 13... Qc7 {[%clk 0:04:16.9]} 14. Rd3
{[%clk 0:04:29.3]} 14... Bc6 {[%clk 0:04:04.2]} 15. Nd4 {[%clk 0:04:24.6]} 15...
Rd8 {[%clk 0:04:01.9]} 16. Nxc6 {[%clk 0:04:22.8]} 16... Rxd3 {[%clk 0:03:53.2]}
17. Nxe7+ {[%clk 0:04:21.3]} 17... Qxe7 {[%clk 0:03:50.6]} 18. Qxd3 {[%clk
0:04:20.2]} 18... b5 {[%clk 0:03:40.6]} 19. Qg3 {[%clk 0:04:16.7]} 19... f5
{[%clk 0:03:23.1]} 20. Bh6 {[%clk 0:04:13.4]} 20... Nc7 {[%clk 0:03:08.5]} 21.
Ne2 {[%clk 0:04:01.5]} 21... Re8 {[%clk 0:03:00.4]} 22. Nf4 {[%clk 0:03:59.1]}
22... g6 {[%clk 0:02:58.2]} 23. Nh5 {[%clk 0:03:52.7]} 23... Kf7 {[%clk
0:02:35.4]} 24. Nf6 {[%clk 0:03:48.5]} 24... Rd8 {[%clk 0:02:17.5]} 25. Bg5
{[%clk 0:03:44.4]} 25... Qb4 {[%clk 0:02:12.1]} 26. Nxh7 {[%clk 0:03:36.9]}
26... Qxb2 {[%clk 0:02:02.8]} 27. Rf1 {[%clk 0:03:26.2]} 27... Rh8 {[%clk
0:01:37.3]} 28. Nf6 {[%clk 0:03:20.8]} 28... Qxa2 {[%clk 0:01:28.5]} 29. h4
{[%clk 0:03:13.2]} 29... Nd5 {[%clk 0:01:26.6]} 30. Nxd5 {[%clk 0:03:12]} 30...
Qxd5 {[%clk 0:01:24.3]} 31. Bf6 {[%clk 0:03:06.9]} 31... Rh5 {[%clk 0:01:16.7]}
32. Ra1 {[%clk 0:02:57.9]} 32... Qc6 {[%clk 0:01:04.2]} 33. Qa3 {[%clk
0:02:52.8]} 33... b4 {[%clk 0:00:13.6]} 34. Qxb4 {[%clk 0:02:45.6]} 34... Qc7
{[%clk 0:00:08.3]} 35. Rxa6 {[%clk 0:02:39]} 35... Qc1+ {[%clk 0:00:06.2]} 36.
Kh2 {[%clk 0:02:34.4]} 36... Rxh4+ {[%clk 0:00:04.1]} 37. Qxh4 {[%clk
0:02:33.2]} 1-0

[Event "Live Chess"]
[Site "Chess.com"]
[Date "2023.05.21"]
[Round "-"]
[White "JanMur7"]
[Black "gmnorfolk"]
[Result "0-1"]
[WhiteElo "1975"]
[BlackElo "2126"]
[TimeControl "300"]
[EndTime "4:48:02 PDT"]
[Termination "gmnorfolk won by resignation"]

1. e4 {[%clk 0:04:58.7]} 1... c5 {[%clk 0:04:58]} 2. Nf3 {[%clk 0:04:57.6]} 2...
d6 {[%clk 0:04:56.8]} 3. c3 {[%clk 0:04:57.1]} 3... Nf6 {[%clk 0:04:55.3]} 4.
Be2 {[%clk 0:04:56.7]} 4... Nbd7 {[%clk 0:04:53.1]} 5. d3 {[%clk 0:04:52.5]}
5... g6 {[%clk 0:04:51.7]} 6. O-O {[%clk 0:04:51.7]} 6... Bg7 {[%clk 0:04:51.3]}
7. Nbd2 {[%clk 0:04:51]} 7... O-O {[%clk 0:04:50.9]} 8. Re1 {[%clk 0:04:50.4]}
8... b6 {[%clk 0:04:49.8]} 9. Nf1 {[%clk 0:04:50]} 9... Bb7 {[%clk 0:04:48.8]}
10. Be3 {[%clk 0:04:49.6]} 10... Rc8 {[%clk 0:04:43.7]} 11. Ng3 {[%clk
0:04:48.6]} 11... e5 {[%clk 0:04:38.8]} 12. Bf1 {[%clk 0:04:45.7]} 12... a6
{[%clk 0:04:36.8]} 13. d4 {[%clk 0:04:36.6]} 13... cxd4 {[%clk 0:04:30.3]} 14.
cxd4 {[%clk 0:04:36.5]} 14... exd4 {[%clk 0:04:29.5]} 15. Bxd4 {[%clk
0:04:34.4]} 15... Re8 {[%clk 0:04:28.8]} 16. e5 {[%clk 0:04:29.1]} 16... dxe5
{[%clk 0:04:23.2]} 17. Nxe5 {[%clk 0:04:27.8]} 17... Nxe5 {[%clk 0:04:19.8]} 18.
Bxe5 {[%clk 0:04:26.8]} 18... Qxd1 {[%clk 0:04:17]} 19. Raxd1 {[%clk 0:04:26.7]}
19... Nd5 {[%clk 0:04:10.9]} 20. Bxg7 {[%clk 0:04:18.3]} 20... Kxg7 {[%clk
0:04:10.8]} 21. Rxe8 {[%clk 0:04:14.1]} 21... Rxe8 {[%clk 0:04:08.7]} 22. h3
{[%clk 0:04:09.1]} 22... Nf4 {[%clk 0:04:02.6]} 23. Rd7 {[%clk 0:04:04.8]} 23...
Rb8 {[%clk 0:03:50]} 24. Bc4 {[%clk 0:04:00.1]} 24... Nxg2 {[%clk 0:03:36]} 25.
Rxf7+ {[%clk 0:03:56.6]} 25... Kh6 {[%clk 0:03:35.4]} 26. Rxb7 {[%clk
0:03:52.6]} 26... Rxb7 {[%clk 0:03:32.3]} 27. Kxg2 {[%clk 0:03:51.9]} 27... b5
{[%clk 0:03:30.5]} 28. Bd5 {[%clk 0:03:50]} 28... Rd7 {[%clk 0:03:26.7]} 29. Be6
{[%clk 0:03:46.5]} 29... Rd2 {[%clk 0:03:20.8]} 30. Bc8 {[%clk 0:03:39.4]} 30...
a5 {[%clk 0:03:12.8]} 31. a4 {[%clk 0:03:38]} 31... bxa4 {[%clk 0:03:09.5]} 32.
Ne4 {[%clk 0:03:32.7]} 32... Rxb2 {[%clk 0:03:08]} 33. Bd7 {[%clk 0:03:31.7]}
33... a3 {[%clk 0:03:07]} 34. Nc3 {[%clk 0:03:28.5]} 34... Rc2 {[%clk
0:02:59.7]} 0-1

[Event "Live Chess"]
[Site "Chess.com"]
[Date "2023.05.21"]
[Round "-"]
[White "CeladonFish"]
[Black "raminguy"]
[Result "0-1"]
[WhiteElo "1096"]
[BlackElo "1952"]
[TimeControl "300"]
[EndTime "4:48:07 PDT"]
[Termination "raminguy won by checkmate"]

1. d4 {[%clk 0:04:58.4]} 1... d5 {[%clk 0:04:59]} 2. c4 {[%clk 0:04:56.9]} 2...
e6 {[%clk 0:04:57.7]} 3. Nc3 {[%clk 0:04:54.4]} 3... a6 {[%clk 0:04:51.5]} 4.
Bf4 {[%clk 0:04:51.2]} 4... dxc4 {[%clk 0:04:50.4]} 5. e3 {[%clk 0:04:49.1]}
5... b5 {[%clk 0:04:49.7]} 6. a4 {[%clk 0:04:46.5]} 6... b4 {[%clk 0:04:48.7]}
7. Na2 {[%clk 0:04:36.2]} 7... Bb7 {[%clk 0:04:47.7]} 8. Nf3 {[%clk 0:04:30.8]}
8... Bd5 {[%clk 0:04:38.4]} 9. Nd2 {[%clk 0:04:12.8]} 9... h5 {[%clk 0:04:22.2]}
10. Bxc4 {[%clk 0:04:09.1]} 10... g5 {[%clk 0:04:13.9]} 11. Be5 {[%clk
0:04:06.6]} 11... f6 {[%clk 0:04:12.6]} 12. Bxd5 {[%clk 0:04:03.8]} 12... exd5
{[%clk 0:04:11.3]} 13. Bxc7 {[%clk 0:03:47.4]} 13... Qxc7 {[%clk 0:04:09.8]} 14.
Rc1 {[%clk 0:03:45.5]} 14... Qd6 {[%clk 0:03:48.6]} 15. Rc5 {[%clk 0:03:29.4]}
15... a5 {[%clk 0:03:31.7]} 16. Qc1 {[%clk 0:03:25.1]} 16... Nd7 {[%clk
0:03:16.4]} 17. Rc8+ {[%clk 0:03:06.6]} 17... Rxc8 {[%clk 0:03:14.4]} 18. Qxc8+
{[%clk 0:03:06.2]} 18... Kf7 {[%clk 0:03:12.5]} 19. e4 {[%clk 0:02:36.3]} 19...
dxe4 {[%clk 0:03:07]} 20. Nxe4 {[%clk 0:02:32.8]} 20... Qe7 {[%clk 0:03:01.6]}
21. Qc4+ {[%clk 0:02:27.1]} 21... Kg7 {[%clk 0:02:58.7]} 22. f3 {[%clk
0:02:10.7]} 22... f5 {[%clk 0:02:57]} 23. d5 {[%clk 0:02:04.4]} 23... fxe4
{[%clk 0:02:52.6]} 24. Qd4+ {[%clk 0:01:57.1]} 24... Ndf6 {[%clk 0:02:51]} 25.
fxe4 {[%clk 0:01:46.1]} 25... Qxe4+ {[%clk 0:02:49.4]} 26. Qxe4 {[%clk
0:01:44.5]} 26... Nxe4 {[%clk 0:02:48.7]} 27. Ke2 {[%clk 0:01:37.1]} 27... Ngf6
{[%clk 0:02:46]} 28. Rd1 {[%clk 0:01:30.9]} 28... Bd6 {[%clk 0:02:41.9]} 29. b3
{[%clk 0:01:13.3]} 29... Rc8 {[%clk 0:02:38.2]} 30. Kf3 {[%clk 0:01:10.6]} 30...
Rc2 {[%clk 0:02:34.9]} 31. Nc1 {[%clk 0:00:58.4]} 31... Rf2+ {[%clk 0:02:32.8]}
32. Ke3 {[%clk 0:00:56.1]} 32... Rxg2 {[%clk 0:02:15.8]} 33. Ne2 {[%clk
0:00:47.6]} 33... Rxe2+ {[%clk 0:02:07.9]} 34. Kxe2 {[%clk 0:00:43.4]} 34...
Nc3+ {[%clk 0:02:06.9]} 35. Kd2 {[%clk 0:00:42.8]} 35... Nxd1 {[%clk 0:02:06.8]}
36. Kxd1 {[%clk 0:00:42.5]} 36... Nxd5 {[%clk 0:02:06.1]} 37. Ke2 {[%clk
0:00:42.3]} 37... Nc3+ {[%clk 0:02:04.7]} 38. Kd3 {[%clk 0:00:42]} 38... Nxa4
{[%clk 0:02:03.5]} 39. bxa4 {[%clk 0:00:39.9]} 39... Bxh2 {[%clk 0:02:02.4]} 40.
Ke4 {[%clk 0:00:38]} 40... g4 {[%clk 0:01:59.5]} 41. Kf5 {[%clk 0:00:36.5]}
41... g3 {[%clk 0:01:58.8]} 42. Kg5 {[%clk 0:00:36.1]} 42... g2 {[%clk
0:01:58.1]} 43. Kh4 {[%clk 0:00:35.8]} 43... g1=Q {[%clk 0:01:57.5]} 44. Kh3
{[%clk 0:00:35.4]} 44... Qg3# {[%clk 0:01:55.8]} 0-1

[Event "Live Chess"]
[Site "Chess.com"]
[Date "2023.05.21"]
[Round "-"]
[White "Dhaydon19"]
[Black "Duke_of_Bebington"]
[Result "1-0"]
[WhiteElo "2701"]
[BlackElo "1577"]
[TimeControl "300"]
[EndTime "4:48:16 PDT"]
[Termination "Dhaydon19 won by resignation"]

1. d4 {[%clk 0:04:56.5]} 1... d5 {[%clk 0:04:58.7]} 2. Nf3 {[%clk 0:04:55.5]}
2... Nf6 {[%clk 0:04:56.7]} 3. g3 {[%clk 0:04:52.7]} 3... Bf5 {[%clk 0:04:52.4]}
4. Bg2 {[%clk 0:04:52]} 4... c6 {[%clk 0:04:51.3]} 5. O-O {[%clk 0:04:51.3]}
5... e6 {[%clk 0:04:50.1]} 6. Nbd2 {[%clk 0:04:50.3]} 6... Bd6 {[%clk
0:04:49.1]} 7. b3 {[%clk 0:04:49.2]} 7... Nbd7 {[%clk 0:04:48.4]} 8. Bb2 {[%clk
0:04:48.5]} 8... O-O {[%clk 0:04:46.7]} 9. Re1 {[%clk 0:04:47.7]} 9... Re8
{[%clk 0:04:46]} 10. Nh4 {[%clk 0:04:45.9]} 10... Bg6 {[%clk 0:04:44.5]} 11.
Nxg6 {[%clk 0:04:44.7]} 11... hxg6 {[%clk 0:04:44.4]} 12. e4 {[%clk 0:04:44.2]}
12... dxe4 {[%clk 0:04:38.5]} 13. Nxe4 {[%clk 0:04:43.2]} 13... Nxe4 {[%clk
0:04:37.1]} 14. Rxe4 {[%clk 0:04:42]} 14... Nf6 {[%clk 0:04:35.6]} 15. Re2
{[%clk 0:04:40.6]} 15... Qb6 {[%clk 0:04:27.5]} 16. c4 {[%clk 0:04:39.2]} 16...
c5 {[%clk 0:04:25.7]} 17. Rd2 {[%clk 0:04:35.6]} 17... Rad8 {[%clk 0:04:19.3]}
18. Rc1 {[%clk 0:04:30.2]} 18... Qc7 {[%clk 0:04:10.4]} 19. Qf3 {[%clk
0:04:22.7]} 19... b6 {[%clk 0:04:06]} 20. Rcd1 {[%clk 0:04:21.6]} 20... e5
{[%clk 0:03:58.7]} 21. dxe5 {[%clk 0:04:19.3]} 21... Bxe5 {[%clk 0:03:54]} 22.
Rxd8 {[%clk 0:04:17.7]} 22... Rxd8 {[%clk 0:03:49.9]} 23. Rxd8+ {[%clk
0:04:15.8]} 23... Qxd8 {[%clk 0:03:48.7]} 24. Bxe5 {[%clk 0:04:15.5]} 1-0